bitfinex-derivatives/quotes_BNBF0:USTF0_20251010
["timestamp","ask_amount","ask_price","bid_price","bid_amount"]
[1760113425289,0.14122259,1233.2,1229.9,0.51157786]
[1760113425485,0.14122259,1233.2,1230.0,0.51157786]
[1760113425691,0.14122259,1233.2,1230.1,0.51157786]
[1760113425991,0.14122259,1233.2,1229.4,0.822]
[1760113425992,0.14122259,1233.2,1230.2,0.51157786]
[1760113426190,0.14122259,1233.2,1230.3,0.51157786]
[1760113426387,0.14122259,1233.2,1230.4,0.51157786]
[1760113426592,0.14122259,1233.2,1229.8,0.59065663]
[1760113426892,0.14122259,1233.2,1229.9,0.5102634]
[1760113427091,0.14122259,1233.2,1229.9,1.10092003]
[1760113427289,0.14122259,1233.2,1230.0,0.5102634]
[1760113427693,0.14122259,1233.2,1230.1,0.5102634]
[1760113427893,0.14122259,1233.2,1230.2,0.5102634]
[1760113428190,0.14122259,1233.2,1230.3,0.5102634]
[1760113428393,0.14122259,1233.2,1229.6,0.59065663]
[1760113428587,0.14122259,1233.2,1230.0,0.59065663]
[1760113428789,0.14122259,1233.2,1230.2,0.59065663]
[1760113428993,0.14122259,1233.2,1230.3,0.51065921]
[1760113429193,0.14122259,1233.2,1230.4,0.51065921]
[1760113429493,0.14122259,1233.2,1230.5,0.51065921]
[1760113429694,0.14122259,1233.2,1230.6,0.51065921]
[1760113429889,0.14122259,1233.2,1230.7,0.51065921]
[1760113430090,0.14122259,1233.2,1230.1,0.59065663]
[1760113430289,0.14122259,1233.2,1230.2,0.51025833]
[1760113430493,0.14122259,1233.2,1230.3,0.51025833]
[1760113430694,0.14122259,1233.2,1230.4,0.51025833]
[1760113430894,0.14122259,1233.2,1230.5,0.51025833]
[1760113431192,0.14122259,1233.2,1230.0,0.59065663]
[1760113431389,0.14122259,1233.2,1230.1,0.50987784]
[1760113431594,0.14122259,1233.2,1229.5,0.59065663]
[1760113431794,0.14122259,1233.2,1229.6,0.51014568]
[1760113431994,0.14122259,1233.2,1229.5,0.59065663]
[1760113431995,0.14122259,1233.2,1229.7,0.51014568]
[1760113432196,0.14122259,1233.2,1229.8,0.51014568]
[1760113432391,0.14122259,1233.2,1229.9,0.51014568]
[1760113432595,0.14122259,1233.2,1230.0,0.51014568]
[1760113432796,0.14122259,1233.2,1229.4,1.41265663]
[1760113433091,0.14122259,1233.2,1229.5,0.51032076]
[1760113433291,0.14122259,1233.2,1229.6,0.51032076]
[1760113433991,0.14122259,1233.2,1229.6,1.10097739]
[1760113434196,0.14122259,1233.2,1229.8,0.59065663]
[1760113434396,0.14122259,1233.2,1229.9,0.51032076]
[1760113435496,0.14122259,1233.2,1230.0,0.51032076]
[1760113435697,0.14122259,1233.2,1230.1,0.51032076]
[1760113435995,0.14122259,1233.2,1230.2,0.51032076]
[1760113436197,0.14122259,1233.2,1230.3,0.51032076]
[1760113436493,0.14122259,1233.2,1229.7,0.59065663]
[1760113436693,0.14122259,1233.2,1229.8,0.51085922]
[1760113436893,0.14122259,1233.2,1229.9,0.51085922]
[1760113437092,0.14122259,1233.2,1230.0,0.51085922]
[1760113437297,0.14122259,1233.2,1230.1,0.51085922]
[1760113437593,0.14122259,1233.2,1230.2,0.51085922]
[1760113437794,0.14122259,1233.2,1230.3,0.51085922]
[1760113438098,0.14122259,1233.2,1229.7,0.59065663]
[1760113438394,0.14122259,1233.2,1229.8,0.51125153]
[1760113438604,0.14122259,1233.2,1229.9,0.51125153]
[1760113438805,0.14122259,1233.2,1230.0,0.51125153]
[1760113439004,0.14122259,1233.2,1230.1,0.51125153]
[1760113439204,0.14122259,1233.2,1230.2,0.51125153]
[1760113439400,0.14122259,1233.2,1229.6,0.59065663]
[1760113439601,0.14122259,1233.2,1229.7,0.51176471]
[1760113439805,0.14122259,1233.2,1229.8,0.51176471]
[1760113440002,0.14122259,1233.2,1229.9,0.51176471]
[1760113440201,0.14122259,1233.2,1230.0,0.51176471]
[1760113440404,0.14122259,1233.2,1229.5,0.59065663]
[1760113440701,0.14122259,1233.2,1229.6,0.51189816]
[1760113440905,0.14122259,1233.2,1229.7,0.51189816]
[1760113441104,0.14122259,1233.2,1229.8,0.51189816]
[1760113441306,0.14122259,1233.2,1229.9,0.51189816]
[1760113441503,0.14122259,1233.2,1229.6,0.987]
[1760113441504,0.14122259,1233.2,1230.0,0.51189816]
[1760113441702,0.14122259,1233.2,1230.1,0.51189816]
[1760113441906,0.14122259,1233.2,1229.6,0.987]
[1760113442104,0.14122259,1233.2,1229.7,0.51256383]
[1760113442304,0.14122259,1233.2,1229.8,0.51256383]
[1760113442509,0.14122259,1233.2,1229.9,0.51256383]
[1760113442709,0.14122259,1233.2,1230.0,0.51256383]
[1760113443005,0.14122259,1233.2,1230.1,0.51256383]
[1760113443208,0.14122259,1233.2,1229.6,0.987]
[1760113443406,0.14122259,1233.2,1229.7,0.51373682]
[1760113443611,0.14122259,1233.2,1229.6,0.987]
[1760113444912,0.14122259,1233.2,1229.7,0.51460001]
[1760113445212,0.14122259,1233.2,1229.6,0.987]
[1760113445409,0.14122259,1233.2,1229.7,0.51533603]
[1760113445611,0.14122259,1233.2,1229.6,0.987]
[1760113445808,0.14122259,1233.2,1229.7,0.5153652]
[1760113446009,0.14122259,1233.2,1229.8,0.5153652]
[1760113446310,0.14122259,1233.2,1229.9,0.5153652]
[1760113446510,0.14122259,1233.2,1230.0,0.5153652]
[1760113446711,0.14122259,1233.2,1230.1,0.5153652]
[1760113446909,0.14122259,1233.2,1229.7,0.59065663]
[1760113447212,0.14122259,1233.2,1229.6,0.987]
[1760113447213,0.14122259,1233.2,1229.8,1.10578189]
[1760113447409,0.14122259,1233.2,1230.0,0.59065663]
[1760113447613,0.14122259,1233.2,1230.1,0.51512526]
[1760113447814,0.14122259,1233.2,1230.2,0.51512526]
[1760113448013,0.14122259,1233.2,1230.3,0.51512526]
[1760113448314,0.14122259,1233.2,1230.4,0.51638685]
[1760113448510,0.14122259,1233.2,1229.6,1.57765663]
[1760113448810,0.14122259,1233.2,1229.7,1.10717058]
[1760113449013,0.14122259,1233.2,1229.8,0.51651395]
[1760113449313,0.14122259,1233.2,1229.9,0.51651395]
[1760113449511,0.14122259,1233.2,1230.0,0.51651395]
[1760113449809,0.14122259,1233.2,1230.1,0.51651395]
[1760113450112,0.14122259,1233.2,1230.2,0.51651395]
[1760113450311,0.14122259,1233.2,1229.8,0.59065663]
[1760113450312,0.14122259,1233.2,1230.3,0.51651395]
[1760113450513,0.14122259,1233.2,1230.4,0.51651395]
[1760113450710,0.14122259,1233.2,1229.6,0.987]
[1760113450914,0.14122259,1233.2,1229.7,1.10862446]
[1760113451114,0.14122259,1233.2,1230.0,0.59065663]
[1760113451312,0.14122259,1233.2,1230.1,1.10862446]
[1760113451516,0.14122259,1233.2,1230.2,0.51796783]
[1760113451714,0.14122259,1233.2,1230.3,0.51796783]
[1760113452012,0.14122259,1233.2,1230.6,0.59065663]
[1760113452216,0.14122259,1233.2,1230.7,0.51796783]
[1760113452417,0.14122259,1233.2,1230.8,0.51796783]
[1760113452617,0.14122259,1233.2,1230.9,0.51796783]
[1760113452815,0.14122259,1233.2,1231.0,0.51796783]
[1760113453018,0.14122259,1233.2,1231.0,0.668]
[1760113456523,0.14122259,1233.2,1231.1,0.734]
[1760113463827,0.14122259,1233.2,1231.2,0.52383177]
[1760113464028,0.14122259,1233.2,1231.1,0.734]
[1760113465330,0.14122259,1233.2,1231.2,0.52500427]
[1760113465531,0.14122259,1233.2,1231.1,0.734]
[1760113465827,0.14122259,1233.2,1231.2,0.52489227]
[1760113466027,0.14122259,1233.2,1231.1,0.734]
[1760113466333,0.14122259,1233.2,1231.2,0.52455265]
[1760113466631,0.14122259,1233.2,1231.3,0.52455265]
[1760113466832,0.14122259,1233.2,1231.4,0.52455265]
[1760113467028,0.14122259,1233.2,1231.5,0.52455265]
[1760113467227,0.14122259,1233.2,1231.6,0.52470083]
[1760113467428,0.14122259,1233.2,1231.1,1.32465663]
[1760113467731,0.14122259,1233.2,1231.2,0.52454965]
[1760113467931,0.14122259,1233.2,1231.3,0.52454965]
[1760113468128,0.14122259,1233.2,1231.4,0.52454965]
[1760113468331,0.14122259,1233.2,1231.5,0.52454965]
[1760113468627,0.14122259,1233.2,1231.6,0.52454965]
[1760113468830,0.14122259,1233.2,1231.7,0.52454965]
[1760113469031,0.14122259,1233.2,1231.8,0.52454965]
[1760113469228,0.14122259,1233.2,1231.1,1.32465663]
[1760113469430,0.14122259,1233.2,1231.2,0.5250666]
[1760113469634,0.14122259,1233.2,1231.3,1.4680666]
[1760113469828,0.14122259,1233.2,1231.4,0.5250666]
[1760113470028,0.14122259,1233.2,1231.5,0.5250666]
[1760113470230,0.14122259,1233.2,1231.6,0.5250666]
[1760113470429,0.14122259,1233.2,1231.7,0.5250666]
[1760113470634,0.14122259,1233.2,1231.8,0.5250666]
[1760113470831,0.14122259,1233.2,1231.9,0.5250666]
[1760113474732,0.14122259,1233.2,1231.9,0.52574073]
[1760113474933,0.14122259,1233.2,1232.0,0.52574073]
[1760113475136,0.14122259,1233.2,1232.1,0.52574073]
[1760113475336,0.14122259,1233.2,1231.5,0.59065663]
[1760113475536,0.14122259,1233.2,1231.6,0.52577999]
[1760113475732,0.14122259,1233.2,1231.7,0.52577999]
[1760113475936,0.14122259,1233.2,1231.8,0.52577999]
[1760113476132,0.14122259,1233.2,1231.9,0.52577999]
[1760113476338,0.14122259,1233.2,1232.0,0.52577999]
[1760113476538,0.14122259,1233.2,1231.5,0.59065663]
[1760113476735,0.14122259,1233.2,1231.6,0.5258267]
[1760113476935,0.14122259,1233.2,1231.7,0.5258267]
[1760113477234,0.14122259,1233.2,1231.3,0.943]
[1760113477433,0.14122259,1233.2,1231.8,0.913]
[1760113477637,0.14122259,1233.2,1231.9,0.52603037]
[1760113477839,0.14122259,1233.2,1232.0,0.52603037]
[1760113478037,0.14122259,1233.2,1231.8,0.913]
[1760113478234,0.14122259,1233.2,1231.9,0.52583473]
[1760113478439,0.14122259,1233.2,1231.8,0.913]
[1760113478638,0.14122259,1233.2,1231.9,0.52587628]
[1760113478838,0.14122259,1233.2,1231.8,0.913]
[1760113479039,0.14122259,1233.2,1231.9,0.5258448]
[1760113479235,0.14122259,1233.2,1231.8,0.913]
[1760113479440,0.14122259,1233.2,1231.9,0.52558623]
[1760113479642,0.14122259,1233.2,1231.8,0.913]
[1760113481645,0.14122259,1233.2,1231.9,0.52625286]
[1760113481945,0.14122259,1233.2,1231.8,0.913]
[1760113482144,0.14122259,1233.2,1231.9,0.52618597]
[1760113482440,0.14122259,1233.2,1231.8,0.913]
[1760113482643,0.14122259,1233.2,1231.9,0.52591596]
[1760113482843,0.14122259,1233.2,1231.8,0.913]
[1760113483142,0.14122259,1233.2,1231.9,0.52591882]
[1760113483345,0.14122259,1233.2,1231.8,0.913]
[1760113488547,0.14122259,1233.2,1231.9,0.52574186]
[1760113488747,0.14122259,1233.2,1231.8,0.913]
[1760113489043,0.14122259,1233.2,1231.9,0.52585006]
[1760113489249,0.14122259,1233.2,1232.0,0.52585006]
[1760113489444,0.14122259,1233.2,1231.8,0.913]
[1760113489745,0.14122259,1233.2,1231.9,0.52562435]
[1760113489948,0.14122259,1233.2,1232.0,0.52562435]
[1760113490146,0.14122259,1233.2,1231.8,0.913]
[1760113490352,0.14122259,1233.2,1231.9,0.52583423]
[1760113490550,0.14122259,1233.2,1231.8,0.913]
[1760113491849,0.14122259,1233.2,1231.9,0.52717386]
[1760113492049,0.14122259,1233.2,1231.8,0.913]
[1760113492050,0.14122259,1233.2,1232.0,0.52717386]
[1760113492248,0.14122259,1233.2,1231.8,0.913]
[1760113502956,0.14122259,1233.2,1231.9,0.882]
[1760113506055,1.34676999,1233.2,1231.9,0.882]
[1760113506253,0.14122259,1233.2,1231.9,0.882]
[1760113507456,1.2055474,1233.1,1231.9,0.882]
[1760113507852,0.14122259,1233.2,1231.9,0.882]
[1760113508556,1.2055474,1233.3,1231.9,0.74074531]
[1760113508757,1.2055474,1233.1,1231.9,0.74074531]
[1760113509058,1.2055474,1232.6,1231.9,0.74074531]
[1760113509354,1.2055474,1232.7,1231.9,0.74074531]
[1760113509557,1.2055474,1233.0,1231.9,0.74074531]
[1760113509853,1.2055474,1233.1,1231.9,0.74074531]
[1760113510256,1.2055474,1233.4,1231.9,0.74074531]
[1760113510453,1.2055474,1233.1,1231.9,0.74074531]
[1760113510858,1.2055474,1232.9,1231.9,0.74074531]
[1760113511256,1.2055474,1233.0,1231.9,0.74074531]
[1760113511455,0.14124953,1232.7,1231.9,0.74074531]
[1760113513965,1.2055474,1233.2,1231.9,0.59948259]
[1760113514465,1.2055474,1233.3,1231.9,0.59948259]
[1760113514964,1.2055474,1233.4,1231.9,0.59948259]
[1760113516964,0.14124208,1233.1,1231.9,0.59948259]
[1760113520164,0.14124208,1233.1,1231.8,0.913]
[1760113524780,0.14124208,1233.1,1231.9,1.03]
[1760113530778,0.14124208,1233.1,1232.0,0.52002167]
[1760113530978,0.14124208,1233.1,1232.1,0.52002167]
[1760113531278,0.14124208,1233.1,1231.9,1.03]
[1760113531475,0.14124208,1233.1,1232.0,0.51961121]
[1760113531680,0.14124208,1233.1,1232.1,0.51961121]
[1760113531878,0.14124208,1233.1,1231.9,1.03]
[1760113532179,0.14124208,1233.1,1232.0,0.51952679]
[1760113532385,0.14124208,1233.1,1232.1,0.51952679]
[1760113532586,0.14124208,1233.1,1232.2,0.51952679]
[1760113532886,0.14124208,1233.1,1231.9,1.03]
[1760113533085,0.14124208,1233.1,1232.0,0.51941888]
[1760113533385,0.14124208,1233.1,1232.1,0.51941888]
[1760113533685,0.14124208,1233.1,1232.2,0.51554591]
[1760113533885,0.14124208,1233.1,1231.9,1.03]
[1760113534086,0.14124208,1233.1,1232.0,0.51531846]
[1760113534283,0.14124208,1233.1,1232.1,0.51531846]
[1760113534483,0.14124208,1233.1,1232.2,0.51531846]
[1760113534688,0.14124208,1233.1,1231.9,1.03]
[1760113534882,0.14124208,1233.1,1232.0,0.5151821]
[1760113535088,0.14124208,1233.1,1232.1,0.5151821]
[1760113535383,0.14124208,1233.1,1232.2,0.5151821]
[1760113535588,0.14124208,1233.1,1232.0,1.089]
[1760113535788,0.14124208,1233.1,1232.1,0.51556849]
[1760113535988,0.14124208,1233.1,1232.2,0.51556849]
[1760113536185,0.14124208,1233.1,1232.3,0.51556849]
[1760113536389,0.14124208,1233.1,1232.0,1.089]
[1760113536586,0.14124208,1233.1,1232.1,0.51540645]
[1760113536787,0.14124208,1233.1,1232.2,0.51540645]
[1760113536992,0.14124208,1233.1,1232.3,0.51540645]
[1760113537288,0.14124208,1233.1,1232.0,1.089]
[1760113537492,0.14124208,1233.1,1232.1,0.51516488]
[1760113537686,0.14124208,1233.1,1232.2,0.51516488]
[1760113537890,0.14124208,1233.1,1232.3,0.51516488]
[1760113538090,0.14124208,1233.1,1232.0,1.089]
[1760113538293,0.14124208,1233.1,1232.1,0.51495585]
[1760113538489,0.14124208,1233.1,1232.2,0.51495585]
[1760113538690,0.14124208,1233.1,1232.3,0.51495585]
[1760113538890,0.14124208,1233.1,1232.0,1.089]
[1760113539093,0.14124208,1233.1,1232.1,0.51480806]
[1760113539390,0.14124208,1233.1,1232.2,0.51480806]
[1760113539594,0.14124208,1233.1,1232.3,0.51480806]
[1760113539890,0.14124208,1233.1,1232.4,0.51480806]
[1760113540094,0.14124208,1233.1,1232.0,1.089]
[1760113540394,0.14124208,1233.1,1232.1,0.51374695]
[1760113540590,0.14124208,1233.1,1232.2,0.51374695]
[1760113540791,0.14124208,1233.1,1232.3,0.51374695]
[1760113540989,0.14124208,1233.1,1232.4,0.51374695]
[1760113541191,0.14124208,1233.1,1232.5,0.51374695]
[1760113541389,0.14124208,1233.1,1232.6,0.51374695]
[1760113541591,0.14124208,1233.1,1232.0,1.67965663]
[1760113541890,0.14124208,1233.1,1232.1,0.51253035]
[1760113542195,0.14124208,1233.1,1232.2,0.51253035]
[1760113542491,0.14124208,1233.1,1232.3,0.51253035]
[1760113542693,0.14124208,1233.1,1232.4,0.51253035]
[1760113542990,0.14124208,1233.1,1232.5,0.51253035]
[1760113543193,0.14124208,1233.1,1232.6,0.51253035]
[1760113543392,0.14124208,1233.1,1232.7,0.51253035]
[1760113543591,0.14124208,1233.1,1232.2,0.59065663]
[1760113543798,0.14124208,1233.1,1232.3,0.51194736]
[1760113543996,0.14124208,1233.1,1232.4,0.51194736]
[1760113544197,0.14124208,1233.1,1232.5,0.51194736]
[1760113544396,0.14124208,1233.1,1232.6,0.51194736]
[1760113544595,0.14124208,1233.1,1232.7,0.51156944]
[1760113544792,0.14124208,1233.1,1232.2,0.59065663]
[1760113544996,0.14124208,1233.1,1232.3,0.5116831]
[1760113545192,0.14124208,1233.1,1232.4,0.5116831]
[1760113545398,0.14124208,1233.1,1232.5,0.5116831]
[1760113545597,0.14124208,1233.1,1232.6,0.5116831]
[1760113545798,0.14124208,1233.1,1232.7,0.5116831]
[1760113546092,0.14124208,1233.1,1232.8,0.5116831]
[1760113546293,0.14124208,1233.1,1232.2,0.59065663]
[1760113546496,0.14124208,1233.1,1232.3,0.51061924]
[1760113546694,0.14124208,1233.1,1232.4,0.51061924]
[1760113546896,0.14124208,1233.1,1232.5,0.51061924]
[1760113547095,0.14124208,1233.1,1232.6,0.51061924]
[1760113547295,0.14124208,1233.1,1232.7,0.51061924]
[1760113547496,0.14124208,1233.1,1232.2,0.59065663]
[1760113547497,0.14124208,1233.1,1232.8,0.51061924]
[1760113547694,0.14124208,1233.1,1232.9,0.51061924]
[1760113547895,0.14124208,1233.1,1232.6,0.953]
[1760113548099,0.14124208,1233.1,1232.7,0.51067124]
[1760113548399,0.14124208,1233.1,1232.8,0.51067124]
[1760113548598,0.14124208,1233.1,1232.9,0.51067124]
[1760113548799,0.14124208,1233.1,1232.6,0.953]
[1760113549100,0.14124208,1233.1,1232.7,0.51004698]
[1760113549301,0.14124208,1233.1,1232.8,0.51004698]
[1760113549497,0.14124208,1233.1,1232.6,0.953]
[1760113549703,1.2055474,1236.1,1232.7,0.50973692]
[1760113550002,0.14100058,1233.5,1232.8,0.50973692]
[1760113550301,1.2055474,1236.4,1232.9,0.50973692]
[1760113550495,0.14098573,1233.5,1233.0,0.50973692]
[1760113550695,1.2055474,1236.4,1233.1,0.50973692]
[1760113550898,1.2055474,1236.7,1232.6,0.953]
[1760113551201,0.14098744,1233.4,1232.7,0.50879892]
[1760113551399,1.2055474,1236.8,1232.8,0.50879892]
[1760113551699,0.14098744,1233.3,1232.9,0.50879892]
[1760113551899,1.2055474,1236.8,1233.0,0.50879892]
[1760113552104,1.2055474,1236.8,1233.1,0.50879892]
[1760113552404,0.14098772,1233.3,1232.6,0.953]
[1760113552604,1.2055474,1236.8,1232.7,0.50814617]
[1760113552904,0.14099429,1233.2,1232.8,0.50814617]
[1760113553106,1.2055474,1236.2,1232.9,0.50814617]
[1760113553303,2.80333,1237.8,1232.6,0.953]
[1760113553304,0.14101143,1233.2,1232.6,0.953]
[1760113553604,1.2055474,1236.3,1232.7,0.50841268]
[1760113553808,1.2055474,1236.0,1232.6,0.953]
[1760113554008,0.14101772,1233.1,1232.7,0.50877239]
[1760113554209,1.2055474,1236.3,1232.6,0.953]
[1760113554403,0.14101772,1233.1,1232.7,0.50847434]
[1760113554603,0.14101772,1233.1,1232.6,0.953]
[1760113567921,0.14101772,1233.1,1232.7,0.50937088]
[1760113568121,0.14101772,1233.1,1232.6,0.953]
[1760113568324,0.14101772,1233.1,1232.7,0.50959436]
[1760113568519,0.14101772,1233.1,1232.6,0.953]
[1760113568722,0.14101772,1233.1,1232.7,0.5097119]
[1760113569017,0.14101772,1233.1,1232.8,0.5097119]
[1760113569222,0.14101772,1233.1,1232.9,0.5097119]
[1760113569419,1.2055474,1236.4,1232.6,0.953]
[1760113569420,1.2055474,1236.3,1233.0,0.50982526]
[1760113569623,1.2055474,1236.5,1233.1,0.50982526]
[1760113569818,0.1409863,1233.4,1232.6,1.53243425]
[1760113570023,1.2055474,1236.5,1232.7,0.50996732]
[1760113570323,0.14099201,1233.4,1232.8,0.50996732]
[1760113570523,0.14099201,1233.4,1232.9,0.50996732]
[1760113570723,1.2055474,1237.1,1233.0,0.50996732]
[1760113570925,0.14098344,1233.3,1233.1,0.50996732]
[1760113571123,0.14098344,1233.3,1232.6,1.53243425]
[1760113571319,1.2055474,1236.7,1232.7,0.51044135]
[1760113571520,0.14097202,1233.3,1232.8,0.51044135]
[1760113571820,1.2055474,1237.2,1232.9,0.51044135]
[1760113572023,0.14097088,1233.5,1233.0,0.51044135]
[1760113572224,0.14097088,1233.5,1233.1,0.51044135]
[1760113572519,1.2055474,1237.1,1233.2,0.51044135]
[1760113572724,0.1409566,1233.5,1233.3,0.51044135]
[1760113572924,1.2055474,1237.0,1233.4,0.51044135]
[1760113573120,1.2055474,1237.1,1232.7,0.57943425]
[1760113573421,0.14095032,1233.5,1232.8,0.51028495]
[1760113573624,1.2055474,1236.7,1232.9,0.51028495]
[1760113573822,0.14096459,1236.1,1233.0,0.51028495]
[1760113574020,0.14096459,1236.1,1233.1,0.51028495]
[1760113574327,0.14096459,1236.1,1233.2,0.51028495]
[1760113574526,0.14096459,1236.1,1233.3,0.51028495]
[1760113574725,0.14096459,1236.1,1233.4,0.51028495]
[1760113574921,0.14096459,1236.1,1232.9,0.57943425]
[1760113575226,0.14096459,1236.1,1233.0,0.5105278]
[1760113575522,0.14096459,1236.1,1233.1,0.5105278]
[1760113575822,0.14096459,1236.1,1233.2,0.5105278]
[1760113576126,0.14096459,1236.1,1233.3,0.5105278]
[1760113576426,0.14096459,1236.1,1232.8,0.57943425]
[1760113576729,0.14096459,1236.1,1232.9,0.51148442]
[1760113577026,0.14096459,1236.1,1233.0,0.51148442]
[1760113577226,0.14096459,1236.1,1232.6,0.953]
[1760113577527,0.14096459,1236.1,1232.7,0.51157555]
[1760113577722,0.14096459,1236.1,1232.8,1.0910098]
[1760113577924,0.14096459,1236.1,1232.9,0.51157555]
[1760113578127,0.14096459,1236.1,1233.0,0.51157555]
[1760113578323,0.14096459,1236.1,1233.1,0.51157555]
[1760113578629,0.14096459,1236.1,1233.2,0.51157555]
[1760113578827,0.14096459,1236.1,1233.3,0.51157555]
[1760113579027,0.14096459,1236.1,1233.4,0.51157555]
[1760113579224,0.14096459,1236.1,1232.8,0.57943425]
[1760113579428,0.14096459,1236.1,1232.9,1.09148415]
[1760113579625,0.14096459,1236.1,1233.0,0.5120499]
[1760113579828,0.14096459,1236.1,1233.1,0.5120499]
[1760113580024,0.14096459,1236.1,1233.2,0.5120499]
[1760113580325,0.14096459,1236.1,1233.3,0.5120499]
[1760113580524,0.14096459,1236.1,1233.2,1.031]
[1760113580729,1.34651199,1236.1,1233.2,1.031]
[1760113580924,0.14096459,1236.1,1233.2,1.031]
[1760113582031,1.34651199,1236.1,1233.2,1.031]
[1760113583230,0.14096459,1236.1,1233.2,1.031]
[1760113584338,0.14096459,1236.1,1233.3,0.5134702]
[1760113584535,0.14096459,1236.1,1233.2,1.031]
[1760113584733,0.14096459,1236.1,1233.3,0.51360015]
[1760113584932,0.14096459,1236.1,1233.2,1.031]
[1760113587831,0.14096459,1236.1,1233.3,0.51488589]
[1760113588036,0.14096459,1236.1,1233.2,1.031]
[1760113588236,0.14096459,1236.1,1233.3,0.51489657]
[1760113588432,1.34651199,1236.1,1233.4,0.51535754]
[1760113588632,1.2055474,1236.0,1233.5,0.51513579]
[1760113588936,1.34651199,1236.1,1233.2,1.031]
[1760113589136,0.14096459,1236.1,1233.3,0.5152479]
[1760113589332,0.14096459,1236.1,1233.4,0.5152479]
[1760113589532,0.14096459,1236.1,1233.5,0.5152479]
[1760113589734,0.14096459,1236.1,1233.6,0.5152479]
[1760113589935,0.14096459,1236.1,1233.7,0.5152479]
[1760113590135,0.14096459,1236.1,1233.2,1.61599607]
[1760113590334,0.14096459,1236.1,1233.3,0.51550209]
[1760113590535,0.14096459,1236.1,1233.4,0.51550209]
[1760113590737,0.14096459,1236.1,1233.5,0.51550209]
[1760113590935,0.14096459,1236.1,1233.6,0.51550209]
[1760113591139,0.14096459,1236.1,1233.7,0.51550209]
[1760113591435,0.14096459,1236.1,1233.8,0.962]
[1760113591633,1.34651199,1236.1,1233.8,0.962]
[1760113592235,0.14096459,1236.1,1233.8,0.962]
[1760113594236,0.14096459,1236.1,1233.9,0.51668959]
[1760113594540,0.14096459,1236.1,1234.0,0.51668959]
[1760113594836,0.14096459,1236.1,1234.1,0.51668959]
[1760113595039,0.14096459,1236.1,1233.8,0.962]
[1760113595239,0.14096459,1236.1,1233.9,0.51687507]
[1760113595438,0.14096459,1236.1,1233.8,0.962]
[1760113596238,1.34651199,1236.1,1233.8,0.962]
[1760113596538,1.2055474,1235.2,1233.8,0.962]
[1760113597044,1.2055474,1235.4,1233.8,0.962]
[1760113597946,1.2055474,1235.5,1233.8,0.962]
[1760113599247,1.2055474,1235.6,1233.8,0.962]
[1760113599448,1.2055474,1235.5,1233.8,0.962]
[1760113599642,0.14096459,1236.1,1233.8,0.962]
[1760113600148,1.2055474,1236.0,1233.8,0.962]
[1760113600340,1.2055474,1235.9,1233.8,0.962]
[1760113600545,1.2055474,1235.7,1233.8,0.962]
[1760113600744,1.2055474,1235.9,1233.8,0.962]
[1760113601745,0.14096459,1236.1,1233.8,0.962]
[1760113602148,1.2055474,1235.2,1233.8,0.962]
[1760113602348,1.2055474,1234.9,1233.8,0.962]
[1760113602647,1.2055474,1235.0,1233.8,0.962]
[1760113602848,1.2055474,1235.2,1233.9,1.018]
[1760113603243,1.2055474,1235.2,1233.9,0.87696114]
[1760113603448,1.2055474,1235.1,1233.9,0.87696114]
[1760113603847,1.2055474,1234.8,1233.9,0.87696114]
[1760113604344,1.2055474,1234.9,1233.9,0.87696114]
[1760113604545,1.2055474,1235.0,1233.9,0.87696114]
[1760113604746,1.2055474,1234.8,1233.9,0.87696114]
[1760113605146,1.2055474,1234.9,1233.9,0.87696114]
[1760113605347,1.2055474,1234.5,1233.9,0.87696114]
[1760113605849,1.2055474,1234.9,1233.9,0.87696114]
[1760113606347,1.2055474,1234.9,1233.9,0.73588797]
[1760113607054,1.2055474,1234.8,1233.9,0.73588797]
[1760113607852,1.2055474,1234.9,1233.9,0.73588797]
[1760113608854,1.2055474,1234.3,1233.0,0.38]
[1760113609354,1.2055474,1234.4,1233.0,0.23892969]
[1760113609554,2.0023786,1235.2,1233.0,0.23892969]
[1760113609555,1.2055474,1234.3,1233.0,0.23892969]
[1760113609756,1.2055474,1235.0,1233.0,0.23892969]
[1760113609955,1.2055474,1235.3,1233.0,0.23892969]
[1760113610256,1.2055474,1235.1,1233.0,0.23892969]
[1760113610651,1.2055474,1234.9,1233.0,0.23892969]
[1760113610857,1.2055474,1235.1,1233.0,0.23892969]
[1760113611155,1.2055474,1235.4,1233.1,0.788]
[1760113611355,1.2055474,1235.5,1233.1,0.788]
[1760113611655,1.2055474,1235.4,1233.1,0.788]
[1760113611854,1.2055474,1235.5,1233.1,0.788]
[1760113612154,0.14104001,1234.9,1233.1,0.788]
[1760113615158,0.14104001,1234.9,1233.2,0.991]
[1760113618160,1.34658741,1234.9,1233.2,0.991]
[1760113618459,0.14104001,1234.9,1233.2,0.991]
[1760113620958,0.14104001,1234.9,1233.3,0.50582886]
[1760113621157,0.14104001,1234.9,1233.2,0.991]
[1760113621362,0.14104001,1234.9,1233.3,0.50592279]
[1760113621661,0.14104001,1234.9,1233.2,0.991]
[1760113621861,0.14104001,1234.9,1233.3,0.50602446]
[1760113622058,0.14104001,1234.9,1233.2,0.991]
[1760113623563,0.14104001,1234.9,1233.3,0.50652758]
[1760113623763,0.14104001,1234.9,1233.4,0.50652758]
[1760113623963,0.14104001,1234.9,1233.2,0.991]
[1760113624164,0.14104001,1234.9,1233.3,0.50557861]
[1760113624362,0.14104001,1234.9,1233.4,0.50557861]
[1760113624565,0.14104001,1234.9,1233.5,0.50557861]
[1760113624767,0.14104001,1234.9,1233.6,0.50557861]
[1760113624968,0.14104001,1234.9,1233.7,0.50557861]
[1760113625165,0.14104001,1234.9,1233.2,1.57599607]
[1760113625370,0.14104001,1234.9,1233.3,0.50483068]
[1760113625568,0.14104001,1234.9,1233.4,0.50483068]
[1760113625768,0.14104001,1234.9,1233.5,0.50483068]
[1760113625969,0.14104001,1234.9,1233.6,0.50474067]
[1760113626167,0.14104001,1234.9,1233.7,0.50474067]
[1760113626367,0.14104001,1234.9,1233.2,1.57599607]
[1760113626667,0.14104001,1234.9,1233.3,0.50454044]
[1760113626867,0.14104001,1234.9,1233.4,0.50454044]
[1760113627066,0.14104001,1234.9,1233.5,0.50454044]
[1760113627367,0.14104001,1234.9,1233.6,0.50454044]
[1760113627570,0.14104001,1234.9,1233.2,0.991]
[1760113627770,0.14104001,1234.9,1233.3,0.50438029]
[1760113627969,0.14104001,1234.9,1233.4,0.50438029]
[1760113628170,0.14104001,1234.9,1233.5,0.50438029]
[1760113628366,0.14104001,1234.9,1233.2,0.991]
[1760113628565,0.14104001,1234.9,1233.3,0.50501351]
[1760113628868,0.14104001,1234.9,1233.2,0.991]
[1760113629068,0.14104001,1234.9,1233.3,0.50509889]
[1760113629270,0.14104001,1234.9,1233.2,0.991]
[1760113629571,0.14104001,1234.9,1233.3,0.50510879]
[1760113629767,0.14104001,1234.9,1233.2,0.991]